bitfinex-derivatives/quotes_SOLF0:USTF0_20250321
["timestamp","ask_amount","ask_price","bid_price","bid_amount"]
[1742541625574,36.3853,127.53,127.51,0.05966822]
[1742541626281,28.51069849,127.54,127.51,20.07957802]
[1742541627385,36.35509849,127.54,127.51,20.07957802]
[1742541627887,28.51069849,127.54,127.52,7.8455]
[1742541628183,28.49069849,127.54,127.51,12.23377802]
[1742541628686,28.49069849,127.54,127.52,7.8456]
[1742541630287,28.49069849,127.54,127.51,20.07967802]
[1742541631286,36.33509849,127.54,127.51,20.07967802]
[1742541631685,28.49069849,127.54,127.52,7.8456]
[1742541633889,36.33519849,127.54,127.51,20.07987802]
[1742541635287,28.49069849,127.54,127.51,12.23377802]
[1742541635490,28.49069849,127.54,127.51,0.05966822]
[1742541636294,7.8455,127.53,127.51,0.05966822]
[1742541638090,28.49069849,127.54,127.51,0.05966822]
[1742541638990,12.1741098,127.53,127.51,0.05966822]
[1742541639388,7.8456,127.52,127.51,0.05966822]
[1742541645390,7.8482,127.48,127.46,7.8491]
[1742541645593,28.36,127.49,127.46,7.8491]
[1742541645794,36.2078,127.49,127.46,7.8491]
[1742541646288,28.36,127.49,127.45,34.4038298]
[1742541646493,28.36,127.49,127.46,0.0577512]
[1742541646494,7.8482,127.48,127.46,0.0577512]
[1742541647287,7.8487,127.47,127.46,0.0577512]
[1742541649791,20.0224098,127.48,127.46,0.0577512]
[1742541649989,7.8483,127.48,127.46,0.0577512]
[1742541650188,28.40982783,127.49,127.46,0.0577512]
[1742541650590,28.40982783,127.49,127.47,7.8487]
[1742541650892,28.40982783,127.49,127.46,0.0577512]
[1742541651290,0.04982783,127.49,127.47,12.1741098]
[1742541651685,0.04982783,127.49,127.48,7.8481]
[1742541653395,0.04982783,127.49,127.47,20.0225098]
[1742541653599,0.04982783,127.49,127.46,0.0577512]
[1742541653895,28.36,127.48,127.46,0.0577512]
[1742541654900,28.36,127.48,127.46,7.9068512]
[1742541655489,28.36,127.48,127.46,0.0577512]
[1742541655696,28.36,127.48,127.47,7.8487]
[1742541657593,28.36,127.48,127.46,20.080961]
[1742541658098,28.36,127.48,127.47,7.8487]
[1742541659998,0.04982783,127.49,127.46,12.231861]
[1742541660202,0.04982783,127.49,127.48,12.1741098]
[1742541660595,0.04982783,127.49,127.48,20.0222098]
[1742541660797,28.3,127.53,127.48,12.1741098]
[1742541660998,28.3,127.53,127.52,7.8456]
[1742541661305,28.3,127.53,127.51,12.1741098]
[1742541661504,28.3,127.53,127.49,12.1741098]
[1742541661705,28.3,127.53,127.48,12.1741098]
[1742541661908,0.04985075,127.51,127.49,0.05249227]
[1742541662306,0.04985075,127.51,127.49,7.89969227]
[1742541663111,0.04985075,127.51,127.5,7.8469]
[1742541663312,0.04985075,127.51,127.49,0.05249227]
[1742541663909,0.04985075,127.51,127.49,7.89949227]
[1742541664408,7.89615075,127.51,127.49,0.05249227]
[1742541665413,7.8469,127.5,127.49,0.05249227]
[1742541666211,7.89635075,127.51,127.49,7.89999227]
[1742541666408,0.04985075,127.51,127.49,0.05249227]
[1742541666913,0.04985075,127.51,127.5,20.0210098]
[1742541669408,0.04985075,127.51,127.5,7.8469]
[1742541669605,0.04985075,127.51,127.5,20.0210098]
[1742541672306,12.1741098,127.57,127.54,7.8444]
[1742541672608,28.36,127.56,127.54,7.8444]
[1742541672807,28.36,127.56,127.54,12.1741098]
[1742541673315,28.36,127.56,127.55,7.8438]
[1742541673512,28.41839172,127.56,127.55,7.8438]
[1742541673714,28.41839172,127.56,127.54,7.89386822]
[1742541674812,28.41839172,127.56,127.54,0.04996822]
[1742541675311,20.0179098,127.55,127.54,0.04996822]
[1742541676407,7.846,127.52,127.49,20.0212098]
[1742541676810,28.42,127.53,127.49,12.1741098]
[1742541677313,36.2656,127.53,127.5,7.8468]
[1742541677514,28.42,127.53,127.49,12.1741098]
[1742541677715,0.05385843,127.53,127.52,7.8456]
[1742541679115,0.05385843,127.53,127.51,20.0200098]
[1742541679521,0.05385843,127.53,127.51,12.1741098]
[1742541680821,0.05385843,127.53,127.52,7.8456]
[1742541681409,14.3087098,127.6,127.51,18.5758098]
[1742541681620,28.4,127.59,127.54,12.1741098]
[1742541682217,28.4,127.59,127.56,7.8428]
[1742541682523,36.2416,127.59,127.56,7.8428]
[1742541682720,36.30046575,127.59,127.56,7.89348331]
[1742541683022,36.30046575,127.59,127.56,0.05068331]
[1742541683416,20.0162098,127.58,127.56,0.05068331]
[1742541684525,7.8425,127.57,127.56,0.05068331]
[1742541685825,36.2222,127.58,127.56,0.05068331]
[1742541687822,7.8425,127.57,127.56,0.05068331]
[1742541688328,28.38,127.58,127.56,0.05068331]
[1742541688916,36.2222,127.58,127.56,0.05068331]
[1742541690426,7.8425,127.57,127.56,0.05068331]
[1742541690914,36.2222,127.58,127.56,0.05068331]
[1742541691328,0.05886575,127.59,127.56,0.05068331]
[1742541691527,7.90046575,127.59,127.56,7.89378331]
[1742541691826,7.90046575,127.59,127.56,0.05068331]
[1742541692427,7.842,127.58,127.56,0.05068331]
[1742541694730,7.842,127.58,127.56,7.89378331]
[1742541695030,20.07457555,127.59,127.56,0.05068331]
[1742541695231,20.07457555,127.59,127.57,7.8425]
[1742541695732,20.07457555,127.59,127.56,0.05068331]
[1742541695933,0.05886575,127.59,127.56,0.05068331]
[1742541696433,0.05886575,127.59,127.58,7.8419]
[1742541697029,0.05886575,127.59,127.57,7.8424]
[1742541697631,0.05886575,127.59,127.56,20.06759311]
[1742541697836,7.90026575,127.59,127.56,20.06759311]
[1742541698437,7.90026575,127.59,127.56,12.22479311]
[1742541699226,0.05886575,127.59,127.56,12.22479311]
[1742541700438,7.90056575,127.59,127.56,20.06789311]
[1742541700638,0.05886575,127.59,127.56,12.22479311]
[1742541701136,0.05886575,127.59,127.57,7.8425]
[1742541701336,0.05886575,127.59,127.56,12.22479311]
[1742541702241,0.05886575,127.59,127.58,12.1741098]
[1742541702836,0.05886575,127.59,127.58,20.0160098]
[1742541703543,6.168,127.64,127.6,7.8406]
[1742541703732,34.528,127.64,127.6,12.1741098]
[1742541703935,46.7021098,127.64,127.6,12.1741098]
[1742541704237,46.7021098,127.64,127.59,7.8409]
[1742541704744,7.89468628,127.63,127.6,7.89094982]
[1742541705136,7.8396,127.62,127.6,7.89094982]
[1742541705744,7.8396,127.62,127.6,0.05024982]
[1742541706244,7.8401,127.61,127.6,0.05024982]
[1742541706637,36.2201,127.61,127.6,0.05024982]
[1742541710144,28.38,127.61,127.6,0.05024982]
[1742541710749,28.38,127.61,127.6,7.89094982]
[1742541711051,28.39548628,127.63,127.6,7.89094982]
[1742541711549,28.39548628,127.63,127.6,0.05024982]
[1742541711851,7.8395,127.62,127.6,0.05024982]
[1742541712750,7.8395,127.62,127.6,7.89094982]
[1742541716147,28.39548628,127.63,127.6,0.05024982]
[1742541716451,7.8401,127.61,127.6,0.05024982]
[1742541717046,7.842,127.58,127.56,7.8429]
[1742541717350,28.3,127.58,127.54,12.1741098]
[1742541717550,7.8427,127.57,127.55,7.8435]
[1742541718158,7.89843495,127.57,127.55,7.89512735]
[1742541718343,7.8432,127.56,127.55,0.05162735]
[1742541719456,12.1741098,127.56,127.51,258.86]
[1742541719654,12.1741098,127.54,127.48,32.5649]
[1742541719956,12.1741098,127.54,127.49,12.1741098]
[1742541720358,7.8453,127.53,127.5,7.8464]
[1742541720658,7.90362329,127.53,127.5,7.90045948]
[1742541720854,0.05832329,127.53,127.5,0.05405948]
[1742541721053,28.38,127.52,127.5,0.05405948]
[1742541721452,36.2259,127.52,127.5,0.05405948]
[1742541721956,28.38,127.52,127.5,0.05405948]
[1742541722547,28.38,127.52,127.5,7.90055948]
[1742541723058,28.38,127.52,127.5,0.05405948]
[1742541723258,36.2257,127.52,127.5,0.05405948]
[1742541723859,28.38,127.52,127.5,0.05405948]
[1742541724554,36.2258,127.52,127.5,0.05405948]
[1742541726558,36.2258,127.52,127.5,7.90065948]
[1742541727259,28.38,127.52,127.45,10.28462]
[1742541727453,47.41321569,127.52,127.45,10.28462]
[1742541727657,6.1183,127.51,127.45,10.28462]
[1742541728465,0.05391825,127.49,127.47,0.0521134]
[1742541728666,28.37391825,127.49,127.47,0.0521134]
[1742541729357,28.37391825,127.49,127.47,7.9007134]
[1742541729967,28.37391825,127.49,127.47,0.0521134]
[1742541730159,28.37391825,127.49,127.48,7.8481]
[1742541730363,28.37391825,127.49,127.47,0.0521134]
[1742541730968,28.37391825,127.49,127.47,7.9003134]
[1742541731966,28.37391825,127.49,127.48,7.8481]
[1742541733265,0.05391825,127.49,127.48,7.8481]
[1742541733667,28.32,127.52,127.51,7.8462]
[1742541734172,28.32,127.54,127.51,7.8462]
[1742541734373,28.32,127.54,127.52,7.8456]
[1742541734574,7.8433,127.56,127.48,47.35321569]
[1742541734771,28.32,127.55,127.48,47.35321569]
[1742541734964,0.05411602,127.53,127.51,0.05008502]
[1742541739076,28.28,127.52,127.51,0.05008502]
[1742541739770,28.28,127.52,127.46,7.8491]
[1742541740169,7.8473,127.5,127.46,7.8491]
[1742541740367,28.32,127.49,127.46,7.8491]
[1742541740568,28.32,127.49,127.45,18.13422]
[1742541740769,36.1679,127.49,127.45,18.13422]
[1742541740975,0.05113836,127.48,127.46,0.05950997]
[1742541741476,0.05113836,127.48,127.46,7.90870997]
[1742541742282,0.05113836,127.48,127.47,7.8487]
[1742541744085,510.27765379,127.61,127.46,53.60282566]
[1742541744086,28.34,127.52,127.46,53.60282566]
[1742541744378,28.34,127.52,127.46,53.54331569]
[1742541744579,28.34,127.52,127.5,7.8464]
[1742541745179,28.40027046,127.52,127.5,0.05830513]
[1742541745776,28.40027046,127.52,127.51,7.8462]
[1742541746379,0.06027046,127.52,127.51,7.8462]
[1742541747681,0.06027046,127.52,127.5,0.05830513]
[1742541748381,0.06027046,127.52,127.51,7.8462]
[1742541752986,0.06027046,127.52,127.51,20.02527536]
[1742541753182,12.17907536,127.56,127.54,7.8438]
[1742541753380,28.38,127.55,127.54,7.8438]
[1742541753985,40.53907536,127.56,127.55,7.8438]
[1742541754183,28.36,127.56,127.55,7.8438]
[1742541755080,28.41543212,127.57,127.55,7.8438]
[1742541756582,28.41543212,127.57,127.56,7.8432]
[1742541756980,28.37543212,127.57,127.56,7.8432]
[1742541757284,28.37543212,127.57,127.55,7.8435]
[1742541757887,28.37543212,127.57,127.54,0.0551986]
[1742541758289,36.21823212,127.57,127.54,7.8990986]
[1742541758682,28.37543212,127.57,127.54,7.8990986]
[1742541759391,28.37543212,127.57,127.54,0.0551986]
[1742541759587,47.3966486,127.57,127.54,0.0551986]
[1742541763800,7.8434,127.56,127.54,0.0551986]
[1742541764800,36.21813212,127.57,127.54,0.0551986]
[1742541764987,28.37543212,127.57,127.54,0.0551986]
[1742541765401,7.8432,127.56,127.54,0.0551986]
[1742541766299,7.8432,127.56,127.54,7.8992986]
[1742541767307,7.8432,127.56,127.54,0.0551986]
[1742541767512,28.37543212,127.57,127.54,0.0551986]
[1742541767806,28.37543212,127.57,127.54,7.8994986]
[1742541768303,7.8434,127.56,127.54,7.8994986]
[1742541768501,28.37543212,127.57,127.54,0.0551986]
[1742541768902,36.21823212,127.57,127.54,0.0551986]
[1742541769307,36.21823212,127.57,127.55,7.8435]
[1742541769910,28.37543212,127.57,127.54,0.0551986]
[1742541770302,28.27543212,127.57,127.54,0.0551986]
[1742541770502,36.11833212,127.57,127.55,7.8435]
[1742541771010,28.27543212,127.57,127.55,7.8435]
[1742541771611,36.11833212,127.57,127.55,7.8435]
[1742541773612,7.89833212,127.57,127.55,7.8435]
[1742541773812,28.2,127.56,127.55,7.8435]
[1742541776612,0.05543212,127.57,127.54,0.0551986]
[1742541777114,0.05543212,127.57,127.54,12.22419934]
[1742541779015,0.05543212,127.57,127.55,7.8437]
[1742541780120,7.89813212,127.57,127.55,7.8437]
[1742541780617,36.07813212,127.57,127.55,7.8437]
[1742541781317,7.89813212,127.57,127.55,7.8437]
[1742541781516,7.8432,127.56,127.54,20.06829934]
[1742541781719,7.8432,127.56,127.54,7.8992986]
[1742541782216,36.05833212,127.57,127.54,7.8992986]
[1742541782819,7.8433,127.56,127.54,7.8992986]
[1742541783119,28.21543212,127.57,127.54,7.8992986]
[1742541783519,36.05823212,127.57,127.55,7.8437]
[1742541784120,28.21543212,127.57,127.55,7.8437]
[1742541784920,28.21543212,127.57,127.54,0.0551986]
[1742541785821,28.21543212,127.57,127.55,7.8434]
[1742541786014,36.05803212,127.57,127.55,7.8434]
[1742541787720,28.21543212,127.57,127.55,7.8434]
[1742541789824,36.05803212,127.57,127.55,7.8434]
[1742541790225,28.21543212,127.57,127.54,7.8993986]
[1742541790423,7.8432,127.56,127.54,7.8993986]
[1742541790625,28.21543212,127.57,127.54,0.0551986]
[1742541791124,36.05823212,127.57,127.55,7.8436]
[1742541794318,28.21543212,127.57,127.55,7.8436]
[1742541795928,36.05803212,127.57,127.55,7.8436]
[1742541797230,28.21543212,127.57,127.55,7.8436]
[1742541798232,36.05803212,127.57,127.55,7.8436]
[1742541798433,0.05543212,127.57,127.54,12.22419934]
[1742541800137,0.05543212,127.57,127.56,12.16900074]
[1742541800537,0.05543212,127.57,127.56,20.01220074]
[1742541808534,87.93074222,127.65,127.56,7.84]
[1742541808734,200.0,127.7,127.64,12.16900074]
[1742541808942,200.0,127.7,127.65,28.18]
[1742541809442,200.0,127.7,127.65,36.0176]
[1742541809837,209.59505613,127.67,127.65,36.0176]
[1742541810037,0.05681779,127.67,127.66,7.837]
[1742541811037,0.05681779,127.67,127.66,20.00600074]
[1742541813342,358.83129239,127.69,127.68,7.8358]
[1742541813540,358.83129239,127.69,127.68,20.00480074]
[1742541815347,346.82759239,127.69,127.68,20.00480074]
[1742541815548,309.30259239,127.69,127.68,48.14480074]
[1742541815744,269.78809239,127.69,127.68,48.14480074]
[1742541816049,55.47389283,127.69,127.68,48.14480074]
[1742541816246,9.283e-05,127.69,127.68,48.14480074]
[1742541816443,169.92505328,127.7,127.69,7.8352]
[1742541817154,157.80335328,127.7,127.69,20.00420074]
[1742541818553,157.80335328,127.7,127.69,48.16420074]
[1742541824148,428.90220513,127.71,127.7,7.8346]
[1742541824954,4.1034,127.76,127.73,7.8325]
[1742541825152,4.1034,127.76,127.74,12.16900074]
[1742541825449,4.16004736,127.76,127.74,12.16900074]
[1742541825853,4.16004736,127.76,127.74,12.22375985]
[1742541828561,4.16004736,127.76,127.74,20.05585985]
[1742541830363,4.16004736,127.76,127.74,0.05475911]
[1742541830561,4.16004736,127.76,127.72,40.38900074]
[1742541830762,7.8318,127.75,127.72,48.22170074]
[1742541831064,4.16004736,127.76,127.72,40.38900074]
[1742541831362,11.99124736,127.76,127.73,7.8325]
[1742541831755,11.99124736,127.76,127.73,7.89068872]
[1742541832064,7.8316,127.75,127.73,7.89068872]
[1742541832358,7.8316,127.75,127.73,0.05818872]
[1742541834366,7.8316,127.75,127.73,7.89088872]
[1742541835162,7.8316,127.75,127.73,0.05818872]
[1742541835359,4.16004736,127.76,127.73,0.05818872]
[1742541835863,7.8315,127.75,127.73,0.05818872]
[1742541836463,4.16004736,127.76,127.73,0.05818872]
[1742541836964,12.16900074,127.76,127.73,0.05818872]
[1742541837164,7.8321,127.74,127.73,0.05818872]
[1742541837366,12.16900074,127.74,127.71,73.04296472]
[1742541837663,7.8327,127.73,127.71,73.04296472]
[1742541837863,12.16900074,127.74,127.71,73.04296472]
[1742541838255,20.00160074,127.74,127.71,80.87666472]
[1742541838459,12.16900074,127.74,127.71,80.87666472]
[1742541838660,12.22235832,127.74,127.71,73.09925359]
[1742541839269,20.05445832,127.74,127.72,7.833]
[1742541841772,20.05445832,127.74,127.71,10.80606629]
[1742541841773,7.8328,127.73,127.71,18.63966629]
[1742541842268,7.8328,127.73,127.72,42.89244631]
[1742541842466,20.05475832,127.74,127.72,42.89244631]
[1742541843573,20.05475832,127.74,127.72,50.72574631]
[1742541844075,0.05335758,127.74,127.72,42.89244631]
[1742541844263,0.05335758,127.74,127.73,195.64464357]
[1742541846665,7.88545758,127.74,127.73,195.64464357]
[1742541846869,7.88545758,127.74,127.73,18.057298]
[1742541847068,7.88545758,127.74,127.73,118.057298]
[1742541849076,7.88545758,127.74,127.73,150.19996689]
[1742541851674,7.88545758,127.74,127.73,107.17252545]
[1742541855775,7.88545758,127.74,127.73,100.0]
[1742541862685,7.8333,127.72,127.71,0.05628887]
[1742541862874,48.14230074,127.72,127.71,0.05628887]
[1742541869992,48.14230074,127.72,127.64,47.23704144]
[1742541869993,7.8364,127.67,127.64,47.23704144]
[1742541870190,7.8364,127.67,127.64,43.02744144]
[1742541870392,40.32900074,127.69,127.65,7.8375]
[1742541870690,40.32900074,127.69,127.64,43.02744144]
[1742541870893,40.32900074,127.69,127.64,50.86534144]
[1742541871188,0.05348304,127.68,127.65,0.05077461]
[1742541871491,0.05348304,127.68,127.65,12.21977535]
[1742541871991,0.05348304,127.68,127.66,7.8367]
[1742541873290,0.05348304,127.68,127.67,7.8364]
[1742541875008,7.88938304,127.68,127.65,12.21977535]
[1742541875197,0.05348304,127.68,127.65,12.21977535]
[1742541875396,0.05348304,127.68,127.65,0.05077461]
[1742541877208,7.837,127.66,127.65,0.05077461]
[1742541877705,35.957,127.66,127.65,0.05077461]
[1742541880809,28.12,127.66,127.65,0.05077461]
[1742541881109,28.21348304,127.68,127.65,12.21977535]
[1742541881307,0.05348304,127.68,127.66,7.8364]
[1742541883402,7.88938304,127.68,127.66,7.8364]
[1742541883604,7.88938304,127.68,127.65,20.05717535]
[1742541883806,0.05348304,127.68,127.65,20.05717535]
[1742541884002,7.88958304,127.68,127.65,20.05717535]
[1742541885011,0.05348304,127.68,127.65,12.21977535]
[1742541885510,7.8364,127.67,127.65,12.21977535]
[1742541886117,0.05348304,127.68,127.65,0.05077461]
[1742541888812,12.16900074,127.67,127.65,0.05077461]
[1742541889112,7.837,127.66,127.65,0.05077461]
[1742541889412,35.977,127.66,127.65,0.05077461]
[1742541889807,28.14,127.66,127.65,0.05077461]
[1742541890007,28.19348304,127.68,127.65,0.05077461]
[1742541890311,7.8368,127.67,127.65,0.05077461]
[1742541892511,7.8368,127.67,127.65,7.88837461]
[1742541894018,36.04958304,127.68,127.65,0.05077461]
[1742541894717,36.04958304,127.68,127.66,7.8367]
[1742541895114,36.04958304,127.68,127.65,0.05077461]
[1742541895314,7.8365,127.67,127.65,7.88817461]
[1742541895516,28.21348304,127.68,127.65,0.05077461]
[1742541896216,36.04958304,127.68,127.65,7.88797461]
[1742541897317,7.8365,127.67,127.65,7.88797461]
[1742541900325,28.21348304,127.68,127.65,0.05077461]
[1742541900718,7.837,127.66,127.65,0.05077461]
[1742541903917,7.8367,127.67,127.65,0.05077461]
[1742541906725,7.8367,127.67,127.65,7.88837461]
[1742541908030,7.8367,127.67,127.65,0.05077461]
[1742541909330,36.04938304,127.68,127.66,7.837]
[1742541910332,36.04938304,127.68,127.65,7.88807461]
[1742541910631,36.04938304,127.68,127.65,0.05077461]
[1742541911834,36.04938304,127.68,127.66,7.8366]
[1742541912132,28.21348304,127.68,127.65,0.05077461]
[1742541912332,0.05348304,127.68,127.65,12.21977535]
[1742541912528,0.05348304,127.68,127.67,7.8364]
[1742541923740,0.05348304,127.68,127.67,20.00540074]
[1742541923945,40.08900074,127.73,127.7,7.8341]
[1742541924247,14.33130074,127.74,127.67,40.08900074]
[1742541924546,7.8336,127.72,127.67,40.08900074]
[1742541924948,7.8336,127.72,127.69,7.8349]
[1742541925148,0.05304623,127.71,127.69,7.8349]
[1742541926244,0.05304623,127.71,127.68,0.05966631]
[1742541928651,0.05304623,127.71,127.69,12.16900074]
[1742541929445,0.05304623,127.71,127.7,7.8346]
[1742541931353,7.88704623,127.71,127.69,20.00390074]
[1742541931655,7.88704623,127.71,127.69,7.8349]
[1742541931859,0.05304623,127.71,127.69,7.8346]
[1742541932156,0.05304623,127.71,127.68,0.05966631]
[1742541933157,0.05304623,127.71,127.7,7.8346]
[1742541933461,0.05304623,127.71,127.69,12.16900074]
[1742541934458,0.05304623,127.71,127.69,20.00380074]
[1742541934959,7.88704623,127.71,127.69,20.00380074]
[1742541935769,0.05304623,127.71,127.69,20.00380074]
[1742541936260,7.88704623,127.71,127.69,12.16900074]
[1742541936461,0.05304623,127.71,127.68,0.05966631]
[1742541936852,7.8349,127.7,127.68,0.05966631]
[1742541937154,0.05304623,127.71,127.68,0.05966631]
[1742541937358,7.8352,127.69,127.68,0.05966631]
[1742541937759,0.05304623,127.71,127.68,0.05966631]
[1742541938353,0.05304623,127.71,127.7,7.8346]
[1742541938652,0.05304623,127.71,127.68,0.05966631]
[1742541938858,7.88714623,127.71,127.68,20.06416705]
[1742541939162,7.88714623,127.71,127.68,12.22866705]
[1742541940364,7.88714623,127.71,127.69,7.8349]
[1742541940556,0.05304623,127.71,127.69,7.8349]
[1742541941557,0.05304623,127.71,127.69,7.8352]
[1742541942161,7.88704623,127.71,127.69,7.8352]
[1742541942364,0.05304623,127.71,127.69,7.8352]
[1742541944466,0.05304623,127.71,127.68,12.22866705]
[1742541944965,7.835,127.7,127.68,12.22866705]
[1742541945165,7.835,127.7,127.68,20.06446705]
[1742541949057,7.88734623,127.71,127.69,7.8349]
[1742541949565,7.8347,127.7,127.68,12.22866705]
[1742541949761,7.8347,127.7,127.68,20.06406705]
[1742541950768,7.88734623,127.71,127.68,20.06406705]
[1742541951469,7.88734623,127.71,127.69,7.835]
[1742541952269,0.05304623,127.71,127.69,7.835]
[1742541953567,0.05304623,127.71,127.68,12.22866705]
[1742541954270,7.88704623,127.71,127.69,7.8348]
[1742541954568,0.05304623,127.71,127.69,7.8348]
[1742541955063,0.05304623,127.71,127.68,12.22866705]
[1742541955766,0.05304623,127.71,127.69,7.8348]
[1742541956269,7.88714623,127.71,127.69,7.8348]
[1742541958171,0.05304623,127.71,127.69,7.8348]
[1742541958372,0.05304623,127.71,127.69,7.8352]
[1742541959976,0.05304623,127.71,127.68,12.22866705]
[1742541960572,0.05304623,127.71,127.7,7.8346]
[1742541960973,0.05304623,127.71,127.7,20.00360074]
[1742541966776,27.78,127.75,127.74,7.8321]
[1742541967180,35.6106,127.77,127.74,7.8321]
[1742541967773,35.6106,127.77,127.73,7.8324]
[1742541967983,35.66863566,127.77,127.74,0.05991479]
[1742541968376,27.83803566,127.77,127.75,7.8311]
[1742541969481,35.66863566,127.77,127.75,7.8311]
[1742541969783,7.88863566,127.77,127.75,7.8311]
[1742541969989,35.66863566,127.77,127.75,7.8311]
[1742541970185,35.66863566,127.77,127.74,7.89171479]
[1742541970683,27.83803566,127.77,127.74,0.05991479]
[1742541970876,39.98900074,127.76,127.74,0.05991479]
[1742541971077,44.18170074,127.76,127.74,0.05991479]
[1742541971778,7.8315,127.75,127.7,12.16900074]
[1742541971976,12.16900074,127.73,127.69,301.54744144]
[1742541972184,27.82,127.72,127.69,301.54744144]
[1742541972488,7.8346,127.7,127.69,301.54744144]
[1742541972979,7.88624005,127.71,127.69,258.52]
[1742541973187,0.05204005,127.71,127.69,258.52]
[1742541973578,0.05204005,127.71,127.7,7.8346]
[1742541973778,0.05204005,127.71,127.69,258.52]
[1742541974177,0.05204005,127.71,127.7,7.8346]
[1742541974378,0.05204005,127.71,127.7,20.00360074]
[1742541975285,0.05204005,127.71,127.69,258.52]
[1742541975487,7.8346,127.7,127.69,258.52]
[1742541978997,7.8346,127.7,127.68,0.05341847]
[1742541978998,7.8352,127.69,127.68,0.05341847]
[1742541979296,2.1795,127.69,127.64,43.02744144]
[1742541979591,7.8376,127.65,127.64,43.02744144]
[1742541980388,7.89145966,127.66,127.64,43.02744144]
[1742541981395,7.89145966,127.66,127.63,343.14131925]
[1742541981396,7.89145966,127.66,127.63,258.53712453]
[1742541981594,7.89145966,127.66,127.64,7.8382]
[1742541981788,0.05415966,127.66,127.64,7.8382]
[1742541981994,0.05415966,127.66,127.63,266.37572453]
[1742541982393,7.89155966,127.66,127.63,266.37572453]
[1742541984496,7.8378,127.65,127.63,258.53712453]
[1742541984697,0.05415966,127.66,127.63,258.53712453]
[1742541985087,7.89155966,127.66,127.63,266.37592453]
[1742541985286,0.05415966,127.66,127.63,266.37592453]
[1742541986594,7.8377,127.65,127.63,266.37592453]
[1742541988190,7.89155966,127.66,127.63,266.37592453]
[1742541988394,0.05415966,127.66,127.64,7.8382]
[1742541988998,0.05415966,127.66,127.63,258.53712453]
[1742541989391,0.05415966,127.66,127.64,7.8379]
[1742541989698,7.89135966,127.66,127.63,258.53712453]
[1742541989890,0.05415966,127.66,127.63,258.53712453]
[1742541990287,0.05415966,127.66,127.64,7.8379]
[1742541990892,0.05415966,127.66,127.64,12.16900074]
[1742541991897,0.05415966,127.66,127.65,7.8376]
[1742542000999,35.6343,127.71,127.65,27.8]
[1742542001300,27.8,127.72,127.67,12.16900074]
[1742542001600,35.6337,127.72,127.7,7.8343]
[1742542001808,27.8,127.72,127.7,7.8343]
[1742542001999,27.8,127.72,127.69,12.16900074]
[1742542002200,27.86021774,127.72,127.7,7.89175024]
[1742542002602,27.86021774,127.72,127.7,0.05745024]
[1742542004206,35.69401774,127.72,127.7,0.05745024]
[1742542005008,35.69401774,127.72,127.7,7.89195024]
[1742542005301,35.69401774,127.72,127.7,0.05745024]
[1742542006511,7.8339,127.71,127.7,0.05745024]
[1742542008507,7.89371774,127.72,127.7,7.89205024]
[1742542009609,7.89371774,127.72,127.7,0.05745024]
[1742542013311,7.89371774,127.72,127.7,7.89195024]
[1742542013713,0.06021774,127.72,127.7,0.05745024]
[1742542014607,0.06021774,127.72,127.71,7.8339]
[1742542015008,0.06021774,127.72,127.7,0.05745024]
[1742542015406,0.06021774,127.72,127.7,7.89155024]
[1742542016717,0.06021774,127.72,127.71,7.8339]
[1742542018614,0.06021774,127.72,127.7,20.06065098]
[1742542019614,0.06021774,127.72,127.71,7.8339]
[1742542022024,12.16900074,127.77,127.74,7.8317]
[1742542022224,39.94900074,127.77,127.74,7.8317]
[1742542022726,7.8311,127.76,127.74,7.8317]
[1742542023118,7.89045702,127.76,127.74,7.89052314]
[1742542023528,0.05935702,127.76,127.74,7.89052314]
[1742542025231,7.89025702,127.76,127.74,7.89052314]
[1742542025727,0.05935702,127.76,127.75,7.8315]
[1742542026324,0.05935702,127.76,127.74,7.89062314]
[1742542027128,0.05935702,127.76,127.74,0.05882314]
[1742542027428,7.89035702,127.76,127.74,7.89052314]
[1742542028329,0.05935702,127.76,127.74,7.89052314]
[1742542030431,7.89025702,127.76,127.74,7.89052314]
[1742542030634,0.05935702,127.76,127.74,7.89052314]
[1742542031532,0.05935702,127.76,127.75,7.8315]
[1742542031835,0.05935702,127.76,127.74,0.05882314]
[1742542032137,0.05935702,127.76,127.74,7.89042314]
[1742542032836,0.05935702,127.76,127.75,7.8315]
[1742542035335,0.05935702,127.76,127.74,0.05882314]
[1742542035636,7.89055702,127.76,127.74,0.05882314]
[1742542036134,7.89055702,127.76,127.74,7.89052314]
[1742542036336,0.05935702,127.76,127.74,7.89052314]
[1742542036935,0.05935702,127.76,127.75,7.8315]